lending/lending_fUSD_20250121
["ID","MTS","AMOUNT","RATE_DAILY","PERIOD"]
[349859385,1737465043934,-500.0,0.0002002,2]
[349859386,1737465043943,-500.0,0.0002002,2]
[349859387,1737465043952,-675.45,0.0002002,2]
[349859388,1737465043962,-500.0,0.0002002,2]
[349859389,1737465043972,-500.0,0.0002002,2]
[349859390,1737465043984,-500.0,0.0002002,2]
[349859391,1737465043997,-1292.75,0.0002002,2]
[349859392,1737465044009,-500.0,0.0002002,2]
[349859393,1737465044023,-500.0,0.0002002,2]
[349859394,1737465044036,-533.17771255,0.0002002,2]
[349859395,1737465044047,-500.0,0.0002002,2]
[349859396,1737465044060,-1914.27,0.0002002,2]
[349859397,1737465044075,-500.0,0.0002002,2]
[349859398,1737465044087,-500.0,0.0002002,2]
[349859399,1737465044099,-3900.25230727,0.00020051,2]
[349859400,1737465044112,-1365.88822016,0.00020063,2]
[349859401,1737465044126,-420.0,0.00020082,2]
[349859402,1737465044139,-150.0,0.00020089,2]
[349859403,1737465044150,-1715.8658562,0.00020193,2]
[349859404,1737465044162,-9800.0,0.000202,13]
[349859405,1737465044173,-1833.0,0.000202,2]
[349859406,1737465044186,-1365.88822016,0.00020203,2]
[349859407,1737465044199,-500.0,0.00020219,2]
[349859408,1737465044211,-500.0,0.0002022,2]
[349859409,1737465044224,-500.0,0.0002022,2]
[349859410,1737465044237,-500.0,0.0002022,2]
[349859411,1737465044251,-500.0,0.0002022,2]
[349859412,1737465044264,-500.0,0.0002022,2]
[349859413,1737465044277,-500.0,0.0002022,2]
[349859414,1737465044290,-500.0,0.0002022,2]
[349859415,1737465044304,-500.0,0.0002022,2]
[349859416,1737465044317,-500.0,0.0002022,2]
[349859417,1737465044329,-500.0,0.0002022,2]
[349859418,1737465044342,-500.0,0.0002022,2]
[349859419,1737465044355,-3900.25230727,0.0002022,2]
[349859420,1737465044368,-500.0,0.00020221,2]
[349859421,1737465044381,-316.47734665,0.00020221,2]
[349859422,1737465044394,-500.0,0.00020221,2]
[349859423,1737465044406,-500.0,0.00020221,2]
[349859424,1737465044418,-500.0,0.00020221,2]
[349859425,1737465044430,-809.39,0.00020221,2]
[349859426,1737465044441,-500.0,0.00020221,2]
[349859427,1737465044452,-500.0,0.00020221,2]
[349859428,1737465044465,-500.0,0.00020221,2]
[349859429,1737465044480,-474.68,0.00020221,2]
[349859430,1737465044493,-150.0,0.00020264,2]
[349859431,1737465044503,-607.28,0.00020293,2]
[349859432,1737465044514,-500.0,0.00020293,2]
[349859433,1737465044525,-5279.4,0.00020293,2]
[349859434,1737465044538,-153.620203,0.00020293,2]
[349859435,1737465044551,-500.0,0.00020293,2]
[349859436,1737465044563,-500.0,0.00020293,2]
[349859437,1737465044575,-585.61,0.00020293,2]
[349859438,1737465044586,-528.16,0.00020293,2]
[349859439,1737465044597,-276.79646,0.00020293,2]
[349859440,1737465044608,-584.41,0.00020293,2]
[349859441,1737465044620,-500.0,0.00020293,2]
[349859442,1737465044631,-1041.6,0.00020293,2]
[349859443,1737465044642,-1127.0,0.00020293,2]
[349859444,1737465044652,-1227.27,0.00020293,2]
[349859445,1737465044663,-640.68,0.00020293,2]
[349859446,1737465044674,-500.0,0.00020293,2]
[349859447,1737465044687,-1079.49,0.00020293,2]
[349859448,1737465044699,-1704.81,0.00020293,2]
[349859449,1737465044710,-2082.94,0.00020293,2]
[349859450,1737465044721,-1154.26,0.00020293,2]
[349859451,1737465044733,-599.9,0.00020293,2]
[349859452,1737465044745,-523.56,0.00020293,2]
[349859453,1737465044756,-638.93,0.00020293,2]
[349859454,1737465044768,-500.0,0.00020293,2]
[349859455,1737465044779,-500.0,0.00020293,2]
[349859456,1737465044790,-1068.62,0.00020293,2]
[349859457,1737465044801,-1471.12,0.00020293,2]
[349859458,1737465044812,-791.48,0.00020293,2]
[349859459,1737465044824,-797.62,0.00020293,2]
[349859460,1737465044835,-1238.46,0.00020293,2]
[349859461,1737465044846,-1241.58,0.00020293,2]
[349859462,1737465044857,-730.41,0.00020293,2]
[349859463,1737465044869,-502.24,0.00020293,2]
[349859464,1737465044880,-897.28,0.00020293,2]
[349859465,1737465044892,-500.0,0.00020293,2]
[349859466,1737465044903,-544.34,0.00020293,2]
[349859467,1737465044914,-1355.37,0.00020293,2]
[349859468,1737465044925,-604.23,0.00020293,2]
[349859469,1737465044936,-1022.25,0.00020293,2]
[349859470,1737465044948,-646.25,0.00020293,2]
[349859471,1737465044959,-588.1,0.00020293,2]
[349859472,1737465044970,-1546.77,0.00020293,2]
[349859473,1737465044983,-581.53,0.00020293,2]
[349859474,1737465044995,-790.96,0.00020293,2]
[349859475,1737465045006,-500.0,0.00020293,2]
[349859476,1737465045018,-1603.27,0.00020293,2]
[349859477,1737465045028,-500.0,0.00020293,2]
[349859478,1737465045039,-1355.71,0.00020293,2]
[349859479,1737465045051,-500.0,0.00020293,2]
[349859480,1737465045063,-691.98,0.00020293,2]
[349859481,1737465045074,-500.0,0.00020293,2]
[349859482,1737465045085,-1432.51,0.00020293,2]
[349859483,1737465045096,-991.11,0.00020293,2]
[349859484,1737465045107,-500.0,0.00020293,2]
[349859485,1737465045119,-901.72,0.00020293,2]
[349859486,1737465045130,-500.0,0.00020293,2]
[349859487,1737465045142,-500.0,0.00020294,2]
[349859488,1737465045153,-500.0,0.00020294,2]
[349859489,1737465045163,-500.0,0.00020294,2]
[349859490,1737465045174,-500.0,0.00020294,2]
[349859491,1737465045185,-500.0,0.00020294,2]
[349859492,1737465045196,-500.0,0.00020294,2]
[349859493,1737465045208,-500.0,0.00020294,2]
[349859494,1737465045219,-500.0,0.00020294,2]
[349859495,1737465045231,-500.0,0.00020294,2]
[349859496,1737465045242,-500.0,0.00020294,2]
[349859497,1737465045254,-500.0,0.00020294,2]
[349859498,1737465045266,-500.0,0.00020294,2]
[349859499,1737465045278,-500.0,0.00020294,2]
[349859500,1737465045289,-500.0,0.00020294,2]
[349859501,1737465045300,-500.0,0.00020294,2]
[349859502,1737465045312,-500.0,0.00020294,2]
[349859503,1737465045323,-500.0,0.00020294,2]
[349859504,1737465045335,-564.6,0.00020294,2]
[349859505,1737465045349,-500.0,0.00020294,2]
[349859506,1737465045371,-500.0,0.00020294,2]
[349859507,1737465045384,-500.0,0.00020294,2]
[349859508,1737465045395,-500.0,0.00020294,2]
[349859509,1737465045406,-500.0,0.00020294,2]
[349859510,1737465045418,-500.0,0.00020294,2]
[349859511,1737465045430,-500.0,0.00020294,2]
[349859512,1737465045441,-500.0,0.00020294,2]
[349859513,1737465045454,-500.0,0.00020294,2]
[349859514,1737465045467,-566.08372,0.00020294,2]
[349859515,1737465045479,-500.0,0.00020294,2]
[349859516,1737465045491,-500.0,0.00020294,2]
[349859517,1737465045503,-500.0,0.00020294,2]
[349859518,1737465045514,-500.0,0.00020294,2]
[349859519,1737465045526,-500.0,0.00020294,2]
[349859520,1737465045538,-500.0,0.00020294,2]
[349859521,1737465045548,-500.0,0.00020294,2]
[349859522,1737465045557,-500.0,0.00020294,2]
[349859523,1737465045567,-315.2082473,0.00020294,2]
[349859524,1737465045576,-500.0,0.00020294,2]
[349859525,1737465045586,-500.0,0.00020294,2]
[349859526,1737465045595,-500.0,0.00020294,2]
[349859527,1737465045605,-500.0,0.00020294,2]
[349859528,1737465045614,-500.0,0.00020294,2]
[349859529,1737465045625,-500.0,0.00020294,2]
[349859530,1737465045635,-500.0,0.00020294,2]
[349859531,1737465045644,-500.0,0.00020294,2]
[349859532,1737465045654,-500.0,0.00020294,2]
[349859533,1737465045663,-500.0,0.00020294,2]
[349859534,1737465045672,-500.0,0.00020294,2]
[349859535,1737465045682,-769.12,0.00020294,2]
[349859536,1737465045692,-500.0,0.00020294,2]
[349859537,1737465045701,-500.0,0.00020294,2]
[349859538,1737465045711,-497.6543459,0.00020294,2]
[349859541,1737465045720,-500.0,0.00020294,2]
[349859542,1737465045729,-500.0,0.00020294,2]
[349859543,1737465045739,-500.0,0.00020294,2]
[349859544,1737465045749,-515.66,0.00020294,2]
[349859545,1737465045758,-500.0,0.00020294,2]
[349859546,1737465045768,-500.0,0.00020294,2]
[349859547,1737465045777,-500.0,0.00020294,2]
[349859548,1737465045787,-500.0,0.00020294,2]
[349859549,1737465045796,-500.0,0.00020294,2]
[349859550,1737465045806,-500.0,0.00020294,2]
[349859551,1737465045815,-500.0,0.00020294,2]
[349859552,1737465045825,-500.0,0.00020294,2]
[349859553,1737465045835,-500.0,0.00020294,2]
[349859554,1737465045844,-500.0,0.00020294,2]
[349859555,1737465045854,-500.0,0.00020294,2]
[349859556,1737465045863,-500.0,0.00020294,2]
[349859557,1737465045872,-500.0,0.00020294,2]
[349859558,1737465045882,-500.0,0.00020294,2]
[349859559,1737465045891,-500.0,0.00020294,2]
[349859560,1737465045901,-500.0,0.00020294,2]
[349859561,1737465045910,-500.0,0.00020294,2]
[349859562,1737465045919,-500.0,0.00020294,2]
[349859563,1737465045928,-500.0,0.00020294,2]
[349859564,1737465045937,-500.0,0.00020294,2]
[349859566,1737465046260,-500.0,0.00020294,2]
[349859567,1737465046277,-500.0,0.00020294,2]
[349859568,1737465046293,-500.0,0.00020294,2]
[349859569,1737465046313,-500.0,0.00020294,2]
[349859570,1737465046328,-162.23861977,0.00020294,2]
[349859572,1737465046339,-529.94,0.00020294,2]
[349859573,1737465046355,-500.0,0.00020294,2]
[349859574,1737465046365,-500.0,0.00020294,2]
[349859575,1737465046375,-500.0,0.00020294,2]
[349859576,1737465046384,-500.0,0.00020294,2]
[349859577,1737465046395,-500.0,0.00020294,2]
[349859578,1737465046405,-1122.97,0.00020294,2]
[349859579,1737465046420,-500.0,0.00020294,2]
[349859580,1737465046435,-500.0,0.00020294,2]
[349859581,1737465046445,-500.0,0.00020294,2]
[349859582,1737465046456,-500.0,0.00020294,2]
[349859584,1737465046465,-500.0,0.00020294,2]
[349859585,1737465046475,-500.0,0.00020294,2]
[349859586,1737465046486,-500.0,0.00020294,2]
[349859587,1737465046496,-500.0,0.00020294,2]
[349859588,1737465046507,-500.0,0.00020294,2]
[349859589,1737465046516,-500.0,0.00020294,2]
[349859590,1737465046525,-500.0,0.00020294,2]
[349859591,1737465046534,-500.0,0.00020294,2]
[349859592,1737465046544,-500.0,0.00020294,2]
[349859593,1737465046555,-500.0,0.00020294,2]
[349859594,1737465046564,-500.0,0.00020294,2]
[349859595,1737465046576,-346.63098779,0.00020294,2]
[349859596,1737465046586,-500.0,0.00020294,2]
[349859597,1737465046597,-500.0,0.00020294,2]
[349859598,1737465046606,-500.0,0.00020294,2]
[349859599,1737465046616,-500.0,0.00020294,2]
[349859600,1737465046626,-1552.12,0.00020294,2]
[349859601,1737465046636,-606.50136615,0.00020294,2]
[349859602,1737465046645,-500.0,0.00020294,2]
[349859603,1737465046656,-500.0,0.00020294,2]
[349859604,1737465046666,-500.0,0.00020294,2]
[349859605,1737465046676,-600.13,0.00020294,2]
[349859606,1737465046685,-1091.5,0.00020294,2]
[349859607,1737465046696,-500.0,0.00020294,2]
[349859608,1737465046705,-500.0,0.00020294,2]
[349859609,1737465046715,-500.0,0.00020294,2]
[349859610,1737465046725,-500.0,0.00020294,2]
[349859611,1737465046735,-500.0,0.00020294,2]
[349859612,1737465046748,-607.75,0.00020294,2]
[349859613,1737465046758,-258.75912824,0.00020294,2]
[349859614,1737465046802,-500.0,0.00019745,2]
[349859615,1737465046812,-525.08289421,0.00020019,2]
[349859616,1737465047511,-607.29,0.00019471,2]
[349859617,1737465047522,-500.0,0.00019472,2]
[349859618,1737465047531,-58.6187451,0.00019472,2]
[349859619,1737465047543,-267.95145377,0.00019472,2]
[349859620,1737465047556,-173.42980113,0.00019472,2]
[349859621,1737465047566,-607.29,0.00019745,2]
[349859622,1737465047576,-158.90710579,0.00020019,2]
[349859623,1737465047587,-500.0,0.00020019,2]
[349859624,1737465047597,-607.29,0.00020019,2]
[349859625,1737465047606,-683.99,0.00020293,2]
[349859626,1737465047615,-500.0,0.00020293,2]
[349859627,1737465047625,-607.29,0.00020293,2]
[349859628,1737465047634,-241.24087176,0.00020294,2]
[349859629,1737465047643,-500.0,0.00020294,2]
[349859630,1737465047653,-500.0,0.00020294,2]
[349859631,1737465047662,-500.0,0.00020294,2]
[349859632,1737465047671,-610.12,0.00020294,2]
[349859633,1737465047681,-500.0,0.00020294,2]
[349859634,1737465047691,-500.0,0.00020294,2]
[349859635,1737465047701,-500.0,0.00020294,2]
[349859636,1737465047711,-694.79,0.00020294,2]
[349859637,1737465047720,-717.89,0.00020294,2]
[349859638,1737465047738,-213.40179615,0.00020294,2]
[349859639,1737465047750,-286.59820385,0.00020294,2]
[349859640,1737465047759,-321.37543347,0.00020294,2]
[349859641,1737465047779,-178.62456653,0.00020294,2]
[349859642,1737465047788,-601.63,0.00020294,2]
[349859643,1737465047798,-500.0,0.00020294,2]
[349859644,1737465047807,-392.49,0.00020294,2]
[349859645,1737465047816,-629.37,0.00020294,2]
[349859646,1737465047826,-500.0,0.00020294,2]
[349859647,1737465047835,-15.96899018,0.00020294,2]
[349859648,1737465047847,-1071.28100982,0.00020294,2]
[349859649,1737465047856,-500.0,0.00020294,2]
[349859650,1737465047865,-279.65011728,0.00020294,2]
[349859651,1737465047877,-220.34988272,0.00020294,2]
[349859652,1737465047886,-500.0,0.00020294,2]
[349859653,1737465047896,-434.65011728,0.00020294,2]
[349859654,1737465047908,-532.67988272,0.00020294,2]
[349859655,1737465047916,-500.0,0.00020294,2]
[349859656,1737465047926,-500.0,0.00020294,2]
[349859657,1737465047936,-500.0,0.00020294,2]
[349859658,1737465047946,-500.0,0.00020294,2]
[349859659,1737465047955,-500.0,0.00020294,2]
[349859660,1737465047965,-500.0,0.00020294,2]
[349859661,1737465047974,-500.0,0.00020294,2]
[349859662,1737465047984,-500.0,0.00020294,2]
[349859663,1737465047996,-500.0,0.00020294,2]
[349859664,1737465048005,-675.45,0.00020294,2]
[349859665,1737465048016,-500.0,0.00020294,2]
[349859666,1737465048027,-500.0,0.00020294,2]
[349859667,1737465048036,-500.0,0.00020294,2]
[349859668,1737465048046,-1292.75,0.00020294,2]
[349859669,1737465048056,-500.0,0.00020294,2]
[349859670,1737465048066,-500.0,0.00020294,2]
[349859671,1737465048076,-1510.12001608,0.00020294,2]
[349859672,1737465048087,-404.14998392,0.00020294,2]
[349859673,1737465048097,-500.0,0.00020294,2]
[349859674,1737465048107,-500.0,0.00020294,2]
[349859675,1737465048117,-201.25841937,0.00020299,2]
[349859676,1737465048127,-1715.86585619,0.0002033,2]
[349859677,1737465048137,-1365.88822016,0.00020342,2]
[349859678,1737465048147,-154.43,0.00020356,2]
[349859679,1737465048157,-1000.0,0.00020358,2]
[349859680,1737465048167,-500.0,0.00020383,2]
[349859681,1737465048176,-500.0,0.00020383,2]
[349859682,1737465048186,-500.0,0.00020383,2]
[349859683,1737465048195,-500.0,0.00020383,2]
[349859684,1737465048206,-999.0,0.00020383,2]
[349859685,1737465048215,-3900.25230727,0.0002039,2]
[349859686,1737465048225,-9800.0,0.000204,14]
[349859687,1737465048235,-206.16352661,0.000204,2]
[349859688,1737465048246,-150.0,0.0002044,2]
[349859689,1737465048256,-150.0,0.00020454,2]
[349859690,1737465048267,-1715.86585619,0.00020467,2]
[349859691,1737465048277,-1035.24496234,0.00020468,2]
[349859692,1737465048287,-1365.88822016,0.00020482,2]
[349859693,1737465048296,-773.11,0.00020484,2]
[349859694,1737465048308,-150.0,0.00020485,2]
[349859695,1737465048324,-150.0,0.00020485,2]
[349859696,1737465048335,-500.0,0.00020493,2]
[349859697,1737465048352,-438.48,0.00020493,2]
[349859698,1737465048362,-876.96,0.00020493,2]
[349859699,1737465048372,-438.48,0.00020493,2]
[349859700,1737465048382,-438.48,0.00020493,2]
[349859701,1737465048393,-438.48,0.00020493,2]
[349859702,1737465048403,-773.11,0.00020493,2]
[349859703,1737465048412,-438.48,0.00020493,2]
[349859704,1737465048423,-471.96,0.00020493,2]
[349859705,1737465048434,-773.11,0.00020493,2]
[349859706,1737465048449,-773.11,0.00020493,2]
[349859707,1737465048459,-773.11,0.00020493,2]
[349859708,1737465048468,-985.98,0.00020493,2]
[349859709,1737465048478,-773.11,0.00020493,2]
[349859710,1737465048489,-500.0,0.00020494,2]
[349859711,1737465048498,-500.0,0.00020494,2]
[349859712,1737465048508,-500.0,0.00020494,2]
[349859713,1737465048517,-500.0,0.00020494,2]
[349859714,1737465048527,-500.0,0.00020494,2]
[349859715,1737465048537,-500.0,0.00020494,2]
[349859716,1737465048546,-500.0,0.00020494,2]
[349859717,1737465048556,-500.0,0.00020494,2]
[349859718,1737465048565,-500.0,0.00020494,2]
[349859719,1737465048576,-500.0,0.00020495,2]
[349859720,1737465048586,-500.0,0.00020495,2]
[349859721,1737465048596,-809.39,0.00020495,2]
[349859722,1737465048606,-500.0,0.00020495,2]
[349859723,1737465048617,-500.0,0.00020495,2]
[349859724,1737465048627,-500.0,0.00020495,2]
[349859725,1737465048638,-1000.0,0.00020499,2]
[349859726,1737465048648,-500.0,0.00020499,2]
[349859727,1737465048658,-500.0,0.00020499,2]
[349859728,1737465048670,-156.01295642,0.00020499,2]
[349859729,1737465048680,-2110.0,0.000205,2]
[349859730,1737465048689,-5601.00872334,0.000205,3]
[349859731,1737465048710,-859.095,0.000205,3]
[349859732,1737465048855,-632.68619699,0.000205,3]
[349859733,1737465048867,-7319.56362,0.000205,3]
[349859734,1737465048878,-2097.86412202,0.000205,3]
[349859735,1737465048897,-281.58509351,0.000205,3]
[349859736,1737465048913,-500.0,0.00019472,2]
[349859737,1737465048923,-2669.04000002,0.000205,3]
[349859738,1737465049051,-500.0,0.00019471,2]
[349859739,1737465049061,-178.168224,0.00019471,2]
[349859740,1737465049071,-9791.729776,0.000205,3]
[349859741,1737465049245,-500.0,0.00019471,2]
[349859742,1737465049255,-500.0,0.00019472,2]
[349859743,1737465049266,-889.60554,0.000205,3]
[349859744,1737465049288,-319.79717134,0.00019746,2]
[349859745,1737465346601,317.45,0.00019001,30]
[349859746,1737465346950,317.45,0.00021585,30]
[349859748,1737465845130,212.27,0.00010137,2]
[349859749,1737465933742,50000.0,0.00022657,30]
[349859750,1737465936987,50000.0,0.00022657,31]
[349859751,1737465940231,50000.0,0.00022657,32]
[349859752,1737465943879,50000.0,0.00022657,33]
[349859753,1737465947334,50000.0,0.00022657,34]
[349859779,1737466232254,-164.86952003,0.000113,2]
[349859780,1737466232264,-300.0,0.00011999,2]
[349859781,1737466232273,-206.93847997,0.00012,2]
[349859782,1737466232285,-170968.88207459,0.00012,2]
[349859783,1737466232318,-20988.0621851,0.00012,2]
[349859784,1737466232435,-839.68,0.00012,2]
[349859785,1737466232447,-133068.78605815,0.00012,2]
[349859786,1737466232548,-628.78,0.00012,2]
[349859805,1737466238132,-42320.70707472,0.00012,2]
[349859806,1737466238144,-2659.41828366,0.00012,2]
[349859807,1737466238154,-93321.66613755,0.00012,2]
[349859808,1737466238164,-409.76646612,0.00012229,2]
[349859809,1737466238174,-163.23,0.00012329,2]
[349859810,1737466238185,-420.0,0.00013172,2]
[349859811,1737466238195,-409.76646604,0.00013192,2]
[349859812,1737466238205,-409.76646604,0.00014156,2]
[349859813,1737466238215,-587.0,0.0001446,2]
[349859814,1737466238226,-409.76646604,0.00015119,2]
[349859815,1737466238236,-823.0,0.00015874,2]
[349859816,1737466238246,-409.76646604,0.00016083,2]
[349859817,1737466238255,-206.16352661,0.000165,2]
[349859818,1737466238265,-665.89,0.00016682,2]
[349859819,1737466238279,-212.27,0.00016813,2]
[349859820,1737466238288,-409.76646604,0.00017046,2]
[349859821,1737466238298,-206.16352661,0.000174,2]
[349859822,1737466238307,-970.0,0.00017426,2]
[349859823,1737466238318,-250.0,0.00017709,2]
[349859824,1737466238327,-600.0,0.00018,2]
[349859825,1737466238337,-409.76646604,0.0001801,2]
[349859826,1737466238346,-155.29,0.00018232,2]
[349859827,1737466238355,-235.54,0.00018457,2]
[349859828,1737466238366,-1000.0,0.00018515,2]
[349859829,1737466238377,-294.56,0.00018642,2]
[349859831,1737466238388,-198.14,0.00018679,2]
[349859832,1737466238398,-250.0,0.00018738,2]
[349859833,1737466238407,-1418.02,0.00018738,2]
[349859834,1737466238417,-168.02,0.00018782,2]
[349859835,1737466238427,-150.0,0.00018892,2]
[349859836,1737466238437,-1731.62485744,0.000189,2]
[349859837,1737466238447,-665.89,0.00018946,2]
[349859838,1737466238457,-409.76646604,0.00018973,2]
[349859839,1737466238467,-150.0,0.00018987,2]
[349859840,1737466238477,-298.01,0.00018987,2]
[349859841,1737466238487,-624.92,0.00019178,2]
[349859842,1737466238497,-606.72,0.00019178,2]
[349859843,1737466238507,-500.0,0.00019178,2]
[349859844,1737466238517,-977.9,0.00019178,2]
[349859845,1737466238531,-500.0,0.00019178,2]
[349859846,1737466238540,-500.0,0.00019178,2]
[349859847,1737466238549,-1540.71,0.00019178,2]
[349859848,1737466238559,-913.13,0.00019178,2]
[349859849,1737466238568,-420.98301534,0.00019178,2]
[349859850,1737466238579,-878.19,0.00019178,2]
[349859851,1737466238589,-1459.02,0.00019178,2]
[349859852,1737466238599,-1234.48,0.00019178,2]
[349859853,1737466238609,-1350.74,0.00019178,2]
[349859855,1737466238618,-594.25,0.00019178,2]
[349859857,1737466238628,-500.0,0.00019178,2]
[349859859,1737466238638,-628.68,0.00019178,2]
[349859861,1737466238647,-588.77,0.00019178,2]
[349859863,1737466238657,-1741.54,0.00019178,2]
[349859865,1737466238666,-1603.56,0.00019178,2]
[349859867,1737466238675,-500.0,0.00019178,2]
[349859869,1737466238685,-500.0,0.00019178,2]
[349859871,1737466238693,-500.0,0.00019178,2]
[349859873,1737466238702,-500.0,0.00019178,2]
[349859874,1737466238712,-500.0,0.00019178,2]
[349859875,1737466238722,-1817.86,0.00019178,2]
[349859876,1737466238736,-500.0,0.00019178,2]
[349859877,1737466238745,-500.0,0.00019178,2]
[349859878,1737466238755,-500.0,0.00019178,2]
[349859879,1737466238766,-500.0,0.00019178,2]
[349859880,1737466238779,-500.0,0.00019178,2]
[349859881,1737466238788,-500.0,0.00019178,2]
[349859882,1737466238798,-606.67,0.00019178,2]
[349859883,1737466238809,-500.0,0.00019178,2]
[349859884,1737466238820,-500.0,0.00019178,2]
[349859885,1737466238829,-404.17284715,0.00019178,2]
[349859886,1737466238839,-500.0,0.00019178,2]
[349859887,1737466238848,-500.0,0.00019178,2]
[349859888,1737466238857,-500.0,0.00019178,2]
[349859889,1737466238866,-500.0,0.00019178,2]
[349859890,1737466238875,-500.0,0.00019178,2]
[349859891,1737466238885,-500.0,0.00019178,2]
[349859892,1737466238895,-500.0,0.00019178,2]
[349859893,1737466238905,-500.0,0.00019178,2]
[349859894,1737466238914,-294.56,0.00019332,2]
[349859895,1737466238924,-495.939,0.00019372,2]
[349859896,1737466238934,-5507.17,0.00019372,2]
[349859897,1737466238943,-500.0,0.00019372,2]
[349859898,1737466238953,-1000.0,0.00019372,2]
[349859899,1737466238963,-5000.0,0.00019372,2]
[349859900,1737466238972,-2500.0,0.00019372,2]
[349859901,1737466238982,-624.92,0.00019452,2]
[349859902,1737466238992,-606.72,0.00019452,2]
[349859903,1737466239002,-500.0,0.00019452,2]
[349859904,1737466239012,-977.9,0.00019452,2]
[349859905,1737466239024,-500.0,0.00019452,2]
[349859906,1737466239034,-500.0,0.00019452,2]
[349859907,1737466239044,-1540.71,0.00019452,2]
[349859908,1737466239054,-913.13,0.00019452,2]
[349859909,1737466239064,-878.19,0.00019452,2]
[349859910,1737466239074,-1459.02,0.00019452,2]
[349859911,1737466239083,-1234.48,0.00019452,2]
[349859912,1737466239093,-1350.74,0.00019452,2]
[349859913,1737466239103,-594.25,0.00019452,2]
[349859914,1737466239113,-500.0,0.00019452,2]
[349859915,1737466239122,-628.68,0.00019452,2]
[349859916,1737466239132,-588.77,0.00019452,2]
[349859917,1737466239142,-1741.54,0.00019452,2]
[349859918,1737466239151,-1603.56,0.00019452,2]
[349859919,1737466239162,-500.0,0.00019452,2]
[349859920,1737466239172,-500.0,0.00019452,2]
[349859921,1737466239181,-500.0,0.00019452,2]
[349859922,1737466239192,-500.0,0.00019452,2]
[349859923,1737466239202,-500.0,0.00019452,2]
[349859924,1737466239211,-1817.86,0.00019452,2]
[349859925,1737466239221,-500.0,0.00019452,2]
[349859926,1737466239231,-500.0,0.00019452,2]
[349859927,1737466239240,-500.0,0.00019452,2]
[349859928,1737466239250,-500.0,0.00019452,2]
[349859929,1737466239259,-500.0,0.00019452,2]
[349859930,1737466239269,-500.0,0.00019452,2]
[349859931,1737466239281,-606.67,0.00019452,2]
[349859932,1737466239291,-500.0,0.00019452,2]
[349859933,1737466239301,-500.0,0.00019452,2]
[349859934,1737466239310,-500.0,0.00019452,2]
[349859935,1737466239320,-500.0,0.00019452,2]
[349859936,1737466239330,-500.0,0.00019452,2]
[349859937,1737466239340,-234.59312817,0.00019452,2]
[349859938,1737466239354,-500.0,0.00019452,2]
[349859939,1737466239364,-500.0,0.00019452,2]
[349859940,1737466239373,-500.0,0.00019452,2]
[349859941,1737466239383,-500.0,0.00019452,2]
[349859942,1737466239393,-150.0,0.00019453,2]
[349859943,1737466239403,-500.0,0.00019471,2]
[349859944,1737466239412,-500.0,0.00019471,2]